[Event "Festival Primavera Cattolica 2022"]
[Site "Cattolica"]
[Date "2022.03.17"]
[Round "2.9"]
[White "Dimitrov, Radoslav"]
[Black "Park, Evan"]
[Result "1-0"]
[ECO "C48"]
[WhiteElo "2487"]
[BlackElo "2296"]
[Annotator "ChessBase"]
[PlyCount "61"]
[EventDate "2022.03.16"]
[EventType "swiss"]
[EventCountry "ITA"]
[SourceTitle "playchess.com"]
[Source "ChessBase"]
[SourceQuality "1"]
[TimeControl "30/3600+30:1800+30"]

1. e4 {[%emt 0:11:50]} e5 {[%emt 0:00:01]} 2. Nf3 {[%emt 0:00:15]} Nc6 {[%emt 0:00:03]} 3. Nc3 {[%emt 0:00:08]} Nf6 {[%emt 0:00:52]} 4. Bb5 {[%emt 0:00:02]} Nd4 {[%emt 0:06:15]} 5. Bc4 {[%emt 0:02:37]} Bc5 {[%emt 0:00:04]} 6. Nxe5 {[%emt 0:00:09]} Qe7 {[%emt 0:03:37]} 7. Nd3 {[%emt 0:00:02]} d5 {[%emt 0:09:10]} 8. Bxd5 {[%emt 0:00:02]} Bg4 {[%emt 0:16:30]} 9. f3 {[%emt 0:01:00]} Nxf3+ {[%emt 0:03:30]} 10. gxf3 {[%emt 0:00:14]} Nxd5 {[%emt 0:00:01]} 11. Qe2 {[%emt 0:06:48]} Nxc3 {[%emt 0:02:28]} 12. dxc3 {[%emt 0:01:57]} Bd7 {[%emt 0:03:58]} 13. Be3 {[%emt 0:00:05]} Bd6 {[%emt 0:01:03]} 14. c4 {[%emt 0:04:29]} b6 {[%emt 0:02:09]} 15. O-O-O {[%emt 0:00:21]} O-O-O {[%emt 0:01:56]} 16. Qg2 {[%emt 0:01:54]} Qf8 {[%emt 0:05:35]} 17. c5 {[%emt 0:04:55]} bxc5 {[%emt 0:02:16]} 18. c4 {[%emt 0:08:02]} Bc6 {[%emt 0:05:29]} 19. Qf2 {[%emt 0:01:23]} f5 {[%emt 0:00:44]} 20. e5 {[%emt 0:04:51]} f4 {[%emt 0:00:21]} 21. Bxc5 {[%emt 0:01:55]} Bxc5 {[%emt 0:00:06]} 22. Nxc5 {[%emt 0:00:01]} Qf5 {[%emt 0:00:53]} 23. e6 {[%emt 0:03:45]} Qe5 {[%emt 0:01:53]} 24. Rxd8+ {[%emt 0:03:27]} Rxd8 {[%emt 0:00:09]} 25. Re1 {[%emt 0:00:02]} Qh5 {[%emt 0:02:22]} 26. b4 {[%emt 0:07:50]} g5 {[%emt 0:01:08]} 27. e7 {[%emt 0:01:40]} Re8 {[%emt 0:00:11]} 28. Qd4 {[%emt 0:01:07]} Qxf3 {[%emt 0:00:45]} 29. Kb1 {[%emt 0:01:21]} Qa3 {[%emt 0:00:59]} 30. Rd1 {[%emt 0:00:00]} Qxb4+ {[%emt 0:00:00]} 31. Ka1 {[%emt 0:00:12]} 1-0

[Event "Festival Primavera Cattolica 2022"]
[Site "Cattolica"]
[Date "2022.03.18"]
[Round "5.7"]
[White "Roshka, Yevgeniy"]
[Black "Wachinger, Nikolas"]
[Result "1/2-1/2"]
[ECO "B51"]
[WhiteElo "2478"]
[BlackElo "2398"]
[Annotator "ChessBase"]
[PlyCount "118"]
[EventDate "2022.03.16"]
[EventType "swiss"]
[EventCountry "ITA"]
[SourceTitle "playchess.com"]
[Source "ChessBase"]
[SourceQuality "1"]
[TimeControl "30/3600+30:1800+30"]

1. e4 {[%emt 0:00:19]} c5 {[%emt 0:00:37]} 2. Nf3 {[%emt 0:00:22]} d6 {[%emt 0:00:25]} 3. Bb5+ {[%emt 0:00:39]} Nd7 {[%emt 0:00:13]} 4. O-O {[%emt 0:00:13]} a6 {[%emt 0:00:10]} 5. Bd3 {[%emt 0:00:04]} Ngf6 {[%emt 0:00:22]} 6. Re1 {[%emt 0:00:12]} e6 {[%emt 0:00:12]} 7. c3 {[%emt 0:00:08]} b5 {[%emt 0:00:17]} 8. Bc2 {[%emt 0:00:04]} c4 {[%emt 0:00:10]} 9. a4 {[%emt 0:00:03]} Bb7 {[%emt 0:00:12]} 10. axb5 {[%emt 0:00:04]} axb5 {[%emt 0:00:04]} 11. Ra6 {[%emt 1:03:52]} Ra7 12. Rxa7 {[%emt 0:00:00]} Qb8 {[%emt 1:03:48]} 13. Ra8 Qxa8 {[%emt 0:00:00]} 14. Na3 {[%emt 0:00:00]} Bxe4 {[%emt 0:00:00]} 15. Bxe4 {[%emt 0:00:00]} Nxe4 {[%emt 0:00:00]} 16. Nxb5 {[%emt 0:00:00]} Qb7 {[%emt 0:00:00]} 17. d3 {[%emt 0:00:00]} cxd3 {[%emt 0:00:00]} 18. Qxd3 {[%emt 0:00:00]} d5 {[%emt 0:00:00]} 19. b4 {[%emt 0:00:00]} Be7 {[%emt 0:00:00]} 20. Bg5 {[%emt 0:00:00]} Nxg5 {[%emt 0:00:00]} 21. Nxg5 {[%emt 0:00:00]} g6 {[%emt 0:00:00]} 22. Ra1 {[%emt 0:00:00]} O-O {[%emt 0:00:00]} 23. Ra7 {[%emt 0:00:00]} Qc8 {[%emt 0:00:00]} 24. Nf3 {[%emt 0:00:00]} Bd8 {[%emt 0:00:00]} 25. g3 {[%emt 0:00:00]} Bb6 {[%emt 0:00:00]} 26. Ra2 {[%emt 0:00:00]} Qc6 {[%emt 0:00:00]} 27. Nbd4 {[%emt 0:00:00]} Qc7 {[%emt 0:00:00]} 28. Nb5 {[%emt 0:00:00]} Qc6 {[%emt 0:00:00]} 29. Nbd4 {[%emt 0:00:00]} Qb7 {[%emt 0:00:00]} 30. Re2 {[%emt 0:00:00]} Rc8 {[%emt 0:00:00]} 31. h4 {[%emt 0:33:06]} Qc7 {[%emt 0:22:57]} 32. Qb5 {[%emt 0:00:00]} Nf6 {[%emt 0:00:00]} 33. Kg2 {[%emt 0:00:00]} Ne4 {[%emt 0:00:00]} 34. Qa6 {[%emt 0:00:00]} Qb8 {[%emt 0:00:00]} 35. Ne5 {[%emt 0:00:00]} Rxc3 {[%emt 0:12:51]} 36. Nd7 {[%emt 0:00:00]} Qd6 {[%emt 0:00:03]} 37. Nxb6 {[%emt 0:00:00]} Nxf2 {[%emt 0:00:13]} 38. Nf3 {[%emt 0:00:00]} Ne4 {[%emt 0:00:12]} 39. Rxe4 {[%emt 0:00:00]} dxe4 {[%emt 0:00:30]} 40. Qa8+ {[%emt 0:00:00]} Kg7 {[%emt 0:00:19]} 41. Qxe4 {[%emt 0:00:00]} Rxf3 {[%emt 0:01:30]} 42. Qxf3 {[%emt 0:00:00]} Qxb6 {[%emt 0:00:04]} 43. Qc3+ {[%emt 0:00:00]} Kf8 {[%emt 0:01:27]} 44. Qc4 {[%emt 0:00:00]} Ke7 {[%emt 0:00:47]} 45. b5 {[%emt 0:00:00]} Kd7 {[%emt 0:00:48]} 46. Kf3 {[%emt 0:03:01]} f5 {[%emt 0:00:56]} 47. Qd3+ {[%emt 0:02:29]} Qd6 {[%emt 0:00:25]} 48. Qc4 {[%emt 0:00:15]} h6 {[%emt 0:01:37]} 49. Qa4 {[%emt 0:01:24]} Qb6 {[%emt 0:01:25]} 50. Qc4 {[%emt 0:00:09]} g5 {[%emt 0:00:20]} 51. hxg5 {[%emt 0:00:06]} hxg5 {[%emt 0:00:02]} 52. Ke2 {[%emt 0:01:35]} Qd6 {[%emt 0:01:22]} 53. Qa4 {[%emt 0:00:40]} Qxg3 {[%emt 0:01:30]} 54. Qa7+ {[%emt 0:00:13]} Ke8 {[%emt 0:00:12]} 55. b6 {[%emt 0:00:31]} Qe5+ {[%emt 0:00:09]} 56. Kd3 {[%emt 0:01:11]} Qd5+ {[%emt 0:00:01]} 57. Kc3 {[%emt 0:00:47]} Qc5+ {[%emt 0:00:14]} 58. Kb3 {[%emt 0:00:05]} Qb5+ {[%emt 0:01:08]} 59. Ka3 {[%emt 0:00:27]} Qc5+ {[%emt 0:00:47]} 1/2-1/2

[Event "Festival Primavera Cattolica 2022"]
[Site "Cattolica"]
[Date "2022.03.18"]
[Round "5.8"]
[White "Ohanyan, Emin"]
[Black "Mirzoev, Emil"]
[Result "1-0"]
[ECO "C11"]
[WhiteElo "2379"]
[BlackElo "2460"]
[Annotator "ChessBase"]
[PlyCount "65"]
[EventDate "2022.03.16"]
[EventType "swiss"]
[EventCountry "ITA"]
[SourceTitle "playchess.com"]
[Source "ChessBase"]
[SourceQuality "1"]
[TimeControl "30/3600+30:1800+30"]

1. e4 {[%emt 0:00:02]} e6 {[%emt 0:11:32]} 2. d4 {[%emt 0:00:04]} d5 {[%emt 0:00:08]} 3. Nc3 {[%emt 0:00:03]} Nf6 {[%emt 0:00:16]} 4. e5 {[%emt 0:00:10]} Nfd7 {[%emt 0:00:04]} 5. f4 {[%emt 0:00:03]} c5 {[%emt 0:00:06]} 6. Nf3 {[%emt 0:00:01]} Nc6 {[%emt 0:00:07]} 7. Be3 {[%emt 0:00:03]} Be7 {[%emt 0:00:04]} 8. Qd2 {[%emt 0:04:00]} a6 {[%emt 0:00:08]} 9. Ne2 {[%emt 0:04:51]} b5 {[%emt 0:02:37]} 10. g3 {[%emt 0:01:54]} O-O {[%emt 0:04:03]} 11. Bg2 {[%emt 0:06:15]} b4 {[%emt 0:02:47]} 12. O-O {[%emt 0:01:25]} a5 {[%emt 0:00:12]} 13. g4 {[%emt 0:10:11]} Ba6 {[%emt 0:02:06]} 14. Rf2 {[%emt 0:01:16]} Bxe2 {[%emt 0:43:20]} 15. Qxe2 {[%emt 0:03:52]} cxd4 {[%emt 0:00:00]} 16. Nxd4 {[%emt 0:00:15]} Nxd4 {[%emt 0:00:00]} 17. Bxd4 {[%emt 0:00:17]} Rc8 {[%emt 0:00:00]} 18. f5 {[%emt 0:08:01]} Bc5 {[%emt 0:00:00]} 19. c3 {[%emt 0:04:03]} bxc3 {[%emt 0:00:00]} 20. bxc3 {[%emt 0:00:06]} Bxd4 {[%emt 0:00:00]} 21. cxd4 {[%emt 0:00:07]} Qg5 {[%emt 0:00:00]} 22. Raf1 {[%emt 0:04:19]} Rc4 {[%emt 0:00:00]} 23. fxe6 {[%emt 0:02:43]} fxe6 {[%emt 0:00:00]} 24. Bxd5 {[%emt 0:01:08]} exd5 {[%emt 0:00:00]} 25. Rxf8+ {[%emt 0:00:22]} Nxf8 {[%emt 0:00:00]} 26. Qf3 {[%emt 0:00:33]} h5 {[%emt 0:00:00]} 27. Qxd5+ {[%emt 0:01:44]} Kh7 {[%emt 0:00:00]} 28. Qxc4 {[%emt 0:00:16]} Qxg4+ {[%emt 0:00:00]} 29. Kf2 {[%emt 0:00:10]} Ne6 {[%emt 0:00:00]} 30. Ke3 {[%emt 0:00:00]} Qg5+ {[%emt 0:00:00]} 31. Kd3 {[%emt 0:10:11]} Qg2 {[%emt 0:03:04]} 32. Kc3 {[%emt 0:10:24]} Ng5 {[%emt 0:00:05]} 33. Re1 {[%emt 0:02:36]} 1-0

[Event "Festival Primavera Cattolica 2022"]
[Site "Cattolica"]
[Date "2022.03.18"]
[Round "5.10"]
[White "Reuker, Jari"]
[Black "Damia, Angelo"]
[Result "1-0"]
[ECO "B80"]
[WhiteElo "2425"]
[BlackElo "2223"]
[Annotator "ChessBase"]
[PlyCount "49"]
[EventDate "2022.03.16"]
[EventType "swiss"]
[EventCountry "ITA"]
[SourceTitle "playchess.com"]
[Source "ChessBase"]
[SourceQuality "1"]
[TimeControl "30/3600+30:1800+30"]

1. e4 {[%emt 0:02:31]} c5 {[%emt 0:00:39]} 2. Nf3 {[%emt 0:00:19]} d6 {[%emt 0:00:08]} 3. d4 {[%emt 0:00:08]} cxd4 {[%emt 0:00:07]} 4. Nxd4 {[%emt 0:00:03]} Nf6 {[%emt 0:00:09]} 5. Nc3 {[%emt 0:00:05]} Nc6 {[%emt 0:01:01]} 6. f3 {[%emt 0:01:31]} e6 {[%emt 0:06:22]} 7. Be3 {[%emt 0:00:15]} Bd7 {[%emt 0:00:44]} 8. Qd2 {[%emt 0:00:21]} a6 {[%emt 0:01:17]} 9. O-O-O {[%emt 0:00:34]} b5 {[%emt 0:03:25]} 10. Nxc6 {[%emt 0:02:35]} Bxc6 {[%emt 0:00:19]} 11. g4 {[%emt 0:01:05]} Be7 {[%emt 0:03:21]} 12. g5 {[%emt 0:24:32]} Nd7 {[%emt 0:00:39]} 13. h4 {[%emt 0:00:20]} Qa5 {[%emt 0:03:36]} 14. Kb1 {[%emt 0:01:25]} Ne5 {[%emt 0:02:39]} 15. f4 {[%emt 0:07:24]} b4 {[%emt 0:06:06]} 16. Nd5 {[%emt 0:02:00]} exd5 {[%emt 0:01:25]} 17. exd5 {[%emt 0:01:32]} Nf3 {[%emt 0:00:31]} 18. Qd3 {[%emt 0:03:45]} Bb5 {[%emt 0:14:48]} 19. Qe4 {[%emt 0:00:32]} Bxf1 {[%emt 0:00:16]} 20. Rhxf1 {[%emt 0:06:28]} Nxh4 {[%emt 0:01:32]} 21. f5 {[%emt 0:00:13]} Nxf5 {[%emt 0:00:07]} 22. Qxf5 {[%emt 0:00:55]} Rf8 {[%emt 0:02:50]} 23. Bd4 {[%emt 0:01:11]} g6 {[%emt 0:00:53]} 24. Qe4 {[%emt 0:00:32]} Qd8 {[%emt 0:03:33]} 25. Rde1 {[%emt 0:01:09]} 1-0

[Event "Festival Primavera Cattolica 2022"]
[Site "Cattolica"]
[Date "2022.03.19"]
[Round "7.4"]
[White "Davtyan, Artur"]
[Black "Ohanyan, Emin"]
[Result "1/2-1/2"]
[ECO "A11"]
[WhiteElo "2460"]
[BlackElo "2379"]
[Annotator "ChessBase"]
[PlyCount "63"]
[EventDate "2022.03.16"]
[EventType "swiss"]
[EventCountry "ITA"]
[SourceTitle "playchess.com"]
[Source "ChessBase"]
[SourceQuality "1"]
[TimeControl "30/3600+30:1800+30"]

1. Nf3 {[%emt 0:01:29]} d5 {[%emt 0:00:35]} 2. g3 {[%emt 0:00:27]} Nf6 {[%emt 0:01:33]} 3. Bg2 {[%emt 0:00:09]} g6 {[%emt 0:00:34]} 4. b3 {[%emt 0:00:06]} Bg7 {[%emt 0:01:16]} 5. Bb2 {[%emt 0:00:06]} O-O {[%emt 0:00:13]} 6. O-O {[%emt 0:00:07]} Nbd7 {[%emt 0:07:27]} 7. c4 {[%emt 0:02:27]} c6 {[%emt 0:00:27]} 8. Nc3 {[%emt 0:02:16]} Ne4 {[%emt 0:02:36]} 9. Qc2 {[%emt 0:00:57]} Nxc3 10. Bxc3 {[%emt 0:00:08]} Bxc3 {[%emt 0:02:04]} 11. Qxc3 {[%emt 0:00:09]} b6 {[%emt 0:12:45]} 12. cxd5 {[%emt 0:09:21]} cxd5 {[%emt 0:00:31]} 13. Rfc1 {[%emt 0:03:49]} e6 {[%emt 0:15:06]} 14. d3 {[%emt 0:19:00]} Bb7 {[%emt 0:06:16]} 15. Qc7 {[%emt 0:00:08]} Rb8 {[%emt 0:01:50]} 16. b4 {[%emt 0:00:50]} Nf6 {[%emt 0:06:09]} 17. Ne5 {[%emt 0:01:23]} Ne8 {[%emt 0:01:26]} 18. Qd7 {[%emt 0:04:41]} Nd6 {[%emt 0:02:10]} 19. a4 {[%emt 0:02:06]} Re8 {[%emt 0:03:42]} 20. Qxd8 {[%emt 0:17:42]} Rexd8 {[%emt 0:01:09]} 21. Rc7 {[%emt 0:00:16]} Rdc8 {[%emt 0:01:30]} 22. Rd7 {[%emt 0:02:43]} Rd8 {[%emt 0:00:22]} 23. Rc7 {[%emt 0:00:47]} Rdc8 {[%emt 0:00:05]} 24. Rac1 {[%emt 0:00:32]} Ne8 {[%emt 0:00:33]} 25. Rxc8 {[%emt 0:00:45]} Rxc8 {[%emt 0:00:04]} 26. Rxc8 {[%emt 0:00:05]} Bxc8 {[%emt 0:00:04]} 27. Kf1 {[%emt 0:00:16]} Bb7 {[%emt 0:01:17]} 28. Ke1 {[%emt 0:00:18]} f6 {[%emt 0:00:20]} 29. Nf3 {[%emt 0:01:57]} Kf7 {[%emt 0:01:12]} 30. e3 {[%emt 0:00:00]} Nc7 {[%emt 0:00:00]} 31. Kd2 {[%emt 0:00:36]} Bc6 {[%emt 0:01:44]} 32. a5 {[%emt 0:02:44]} 1/2-1/2

[Event "Festival Primavera Cattolica 2022"]
[Site "Cattolica"]
[Date "2022.03.19"]
[Round "7.8"]
[White "Koellner, Ruben Gideon"]
[Black "Enchev, Ivajlo"]
[Result "1/2-1/2"]
[ECO "D00"]
[WhiteElo "2441"]
[BlackElo "2449"]
[Annotator "ChessBase"]
[PlyCount "85"]
[EventDate "2022.03.16"]
[EventType "swiss"]
[EventCountry "ITA"]
[SourceTitle "playchess.com"]
[Source "ChessBase"]
[SourceQuality "1"]
[TimeControl "30/3600+30:1800+30"]

1. d4 {[%emt 0:00:03]} d5 {[%emt 0:00:12]} 2. Bf4 {[%emt 0:00:08]} c5 {[%emt 0:00:47]} 3. e3 {[%emt 0:00:05]} Nc6 {[%emt 0:01:09]} 4. c3 {[%emt 0:00:18]} Nf6 {[%emt 0:00:40]} 5. Nd2 {[%emt 0:00:05]} Bf5 {[%emt 0:01:17]} 6. Qb3 {[%emt 0:00:17]} Qd7 {[%emt 0:01:13]} 7. Ngf3 {[%emt 0:00:14]} c4 {[%emt 0:01:12]} 8. Qd1 {[%emt 0:00:07]} b5 {[%emt 0:00:46]} 9. Nh4 {[%emt 0:01:04]} e6 {[%emt 0:04:27]} 10. Nxf5 {[%emt 0:01:18]} exf5 {[%emt 0:00:02]} 11. Be2 {[%emt 0:00:41]} Bd6 {[%emt 0:00:48]} 12. Bxd6 {[%emt 0:04:27]} Qxd6 {[%emt 0:00:03]} 13. Qc2 {[%emt 0:00:07]} g6 {[%emt 0:02:36]} 14. b3 {[%emt 0:03:38]} O-O {[%emt 0:01:45]} 15. O-O {[%emt 0:00:43]} Rfc8 {[%emt 0:06:13]} 16. bxc4 {[%emt 0:01:51]} bxc4 {[%emt 0:00:55]} 17. Rfb1 {[%emt 0:00:59]} Qa3 {[%emt 0:03:08]} 18. Rb7 {[%emt 0:01:25]} Rab8 {[%emt 0:04:22]} 19. Rab1 {[%emt 0:00:03]} Rxb7 {[%emt 0:00:47]} 20. Rxb7 {[%emt 0:00:05]} Rb8 {[%emt 0:00:43]} 21. Rxb8+ {[%emt 0:00:09]} Nxb8 {[%emt 0:00:04]} 22. Nb1 {[%emt 0:00:12]} Qa5 {[%emt 0:00:26]} 23. Qb2 {[%emt 0:01:04]} Nbd7 {[%emt 0:00:46]} 24. Bd1 {[%emt 0:00:38]} Ne4 {[%emt 0:04:06]} 25. Bc2 {[%emt 0:02:16]} Nd6 {[%emt 0:01:08]} 26. Qa3 {[%emt 0:02:52]} Qb6 {[%emt 0:05:23]} 27. Qb4 {[%emt 0:00:24]} Kf8 {[%emt 0:01:22]} 28. Qxb6 {[%emt 0:03:35]} axb6 {[%emt 0:00:28]} 29. a4 {[%emt 0:00:28]} Ke7 {[%emt 0:00:55]} 30. f3 {[%emt 0:00:00]} Nf8 {[%emt 0:00:00]} 31. Nd2 {[%emt 0:02:33]} b5 {[%emt 0:10:26]} 32. axb5 {[%emt 0:00:20]} Nxb5 {[%emt 0:00:04]} 33. Nb1 {[%emt 0:00:48]} Nd6 {[%emt 0:00:53]} 34. Kf2 {[%emt 0:00:27]} Nd7 {[%emt 0:00:38]} 35. Ke2 {[%emt 0:01:00]} Nf6 {[%emt 0:01:11]} 36. Ba4 {[%emt 0:02:42]} Kd8 {[%emt 0:01:50]} 37. Na3 {[%emt 0:00:23]} Kc7 {[%emt 0:00:33]} 38. Nc2 {[%emt 0:00:15]} Kb6 {[%emt 0:46:12]} 39. Nb4 {[%emt 0:02:14]} Nb5 {[%emt 0:00:00]} 40. Kd2 {[%emt 0:01:56]} Na7 {[%emt 0:00:00]} 41. g3 {[%emt 0:01:03]} Kb7 {[%emt 0:00:00]} 42. h3 {[%emt 0:08:33]} h5 {[%emt 0:00:00]} 43. h4 {[%emt 0:03:32]} 1/2-1/2

[Event "Festival Primavera Cattolica 2022"]
[Site "Cattolica"]
[Date "2022.03.20"]
[Round "8.5"]
[White "Begmuratov, Khumoyun"]
[Black "Ohanyan, Emin"]
[Result "0-1"]
[ECO "B31"]
[WhiteElo "2358"]
[BlackElo "2379"]
[Annotator "ChessBase"]
[PlyCount "146"]
[EventDate "2022.03.16"]
[EventType "swiss"]
[EventCountry "ITA"]
[SourceTitle "playchess.com"]
[Source "ChessBase"]
[SourceQuality "1"]
[TimeControl "30/3600+30:1800+30"]

1. e4 {[%emt 0:00:02]} c5 {[%emt 0:00:09]} 2. Nf3 {[%emt 0:00:28]} Nc6 {[%emt 0:00:03]} 3. Bb5 {[%emt 0:00:21]} g6 {[%emt 0:02:06]} 4. Bxc6 {[%emt 0:00:24]} dxc6 {[%emt 0:00:55]} 5. d3 {[%emt 0:00:15]} Qc7 {[%emt 0:04:09]} 6. Be3 {[%emt 0:00:24]} e5 {[%emt 0:02:33]} 7. Nc3 {[%emt 0:01:01]} f6 {[%emt 0:07:35]} 8. h3 {[%emt 0:00:58]} Be6 {[%emt 0:00:59]} 9. O-O {[%emt 0:08:17]} Bd6 {[%emt 0:07:56]} 10. Qd2 {[%emt 0:03:37]} Ne7 {[%emt 0:08:04]} 11. Ne2 {[%emt 0:02:53]} g5 {[%emt 0:06:27]} 12. c3 {[%emt 0:13:01]} Ng6 {[%emt 0:02:56]} 13. d4 {[%emt 0:06:40]} O-O-O {[%emt 0:03:01]} 14. Qc2 {[%emt 0:06:10]} g4 {[%emt 0:15:40]} 15. hxg4 {[%emt 0:00:24]} Bxg4 {[%emt 0:01:05]} 16. dxc5 {[%emt 0:00:40]} Bxf3 {[%emt 0:01:37]} 17. gxf3 {[%emt 0:08:54]} Rhg8 {[%emt 0:01:59]} 18. cxd6 {[%emt 0:03:50]} Nf4+ {[%emt 0:01:40]} 19. Ng3 {[%emt 0:00:13]} Qd7 {[%emt 0:00:32]} 20. Bxf4 {[%emt 0:00:38]} exf4 {[%emt 0:00:03]} 21. Kh2 {[%emt 0:00:25]} Qg7 {[%emt 0:00:38]} 22. Rg1 {[%emt 0:00:44]} Qh6+ {[%emt 0:00:51]} 23. Kg2 {[%emt 0:00:05]} Qh4 {[%emt 0:00:30]} 24. Kf1 {[%emt 0:02:01]} fxg3 {[%emt 0:00:05]} 25. fxg3 {[%emt 0:00:13]} Rxg3 {[%emt 0:00:12]} 26. Qf2 {[%emt 0:03:05]} Rxg1+ {[%emt 0:00:30]} 27. Qxg1 {[%emt 0:00:01]} Rxd6 {[%emt 0:01:08]} 28. Ke2 {[%emt 0:00:07]} f5 {[%emt 0:00:34]} 29. Qg8+ {[%emt 0:04:09]} Kc7 {[%emt 0:00:31]} 30. Rg1 {[%emt 0:00:00]} Rd7 {[%emt 0:00:00]} 31. Qg3+ {[%emt 0:08:15]} Qxg3 {[%emt 0:02:57]} 32. Rxg3 {[%emt 0:00:01]} fxe4 {[%emt 0:00:18]} 33. fxe4 {[%emt 0:00:08]} h5 {[%emt 0:02:31]} 34. Rh3 {[%emt 0:00:50]} Rh7 {[%emt 0:00:32]} 35. Rh4 {[%emt 0:00:14]} Kd6 {[%emt 0:02:20]} 36. Kf3 {[%emt 0:00:17]} Ke5 {[%emt 0:00:36]} 37. Ke3 {[%emt 0:00:05]} Kf6 {[%emt 0:04:35]} 38. Kf4 {[%emt 0:01:17]} Kg6 {[%emt 0:01:03]} 39. Rh1 {[%emt 0:03:10]} h4 {[%emt 0:05:49]} 40. e5 {[%emt 0:02:08]} h3 {[%emt 0:02:55]} 41. Rh2 {[%emt 0:00:56]} Kf7 {[%emt 0:01:10]} 42. Kf5 {[%emt 0:00:41]} c5 {[%emt 0:05:41]} 43. c4 {[%emt 0:04:13]} a6 {[%emt 0:01:12]} 44. b3 {[%emt 0:01:40]} Rh8 {[%emt 0:01:27]} 45. a3 {[%emt 0:01:58]} a5 {[%emt 0:00:08]} 46. a4 {[%emt 0:04:10]} b6 {[%emt 0:00:10]} 47. Kg4 {[%emt 0:01:17]} Ke6 {[%emt 0:00:13]} 48. Kf4 {[%emt 0:00:04]} Rh7 {[%emt 0:00:55]} 49. Ke4 {[%emt 0:01:04]} Rh4+ {[%emt 0:00:20]} 50. Kf3 {[%emt 0:00:03]} Kxe5 {[%emt 0:00:22]} 51. Kg3 {[%emt 0:00:03]} Rh6 {[%emt 0:00:11]} 52. Re2+ {[%emt 0:00:03]} Kd4 {[%emt 0:00:06]} 53. Kh2 {[%emt 0:00:04]} Kc3 {[%emt 0:00:21]} 54. Re3+ {[%emt 0:00:04]} Kc2 {[%emt 0:00:03]} 55. Rg3 {[%emt 0:00:16]} Rd6 {[%emt 0:00:26]} 56. Rxh3 {[%emt 0:00:11]} Rd3 {[%emt 0:00:07]} 57. Rh6 {[%emt 0:00:05]} Rxb3 {[%emt 0:00:04]} 58. Kg2 {[%emt 0:00:02]} Rb4 {[%emt 0:00:27]} 59. Kf3 {[%emt 0:00:09]} Kb3 {[%emt 0:00:02]} 60. Ke3 {[%emt 0:00:06]} Kxc4 {[%emt 0:00:12]} 61. Kd2 {[%emt 0:00:06]} Kb3 {[%emt 0:00:04]} 62. Rh3+ {[%emt 0:00:05]} Kxa4 {[%emt 0:00:05]} 63. Kc2 {[%emt 0:00:04]} Kb5 {[%emt 0:00:06]} 64. Rh8 {[%emt 0:00:04]} a4 {[%emt 0:00:03]} 65. Ra8 {[%emt 0:00:07]} Rh4 {[%emt 0:00:04]} 66. Kb2 {[%emt 0:00:05]} Kb4 {[%emt 0:00:04]} 67. Rg8 {[%emt 0:00:05]} c4 {[%emt 0:00:06]} 68. Rg2 {[%emt 0:00:06]} Rd4 {[%emt 0:00:05]} 69. Rh2 {[%emt 0:00:02]} Rd2+ {[%emt 0:00:07]} 70. Rxd2 {[%emt 0:00:05]} c3+ {[%emt 0:00:02]} 71. Kc2 {[%emt 0:00:05]} cxd2 {[%emt 0:00:04]} 72. Kxd2 {[%emt 0:00:03]} Kb3 {[%emt 0:00:14]} 73. Kc1 {[%emt 0:00:05]} Ka2 {[%emt 0:14:15]} 0-1

[Event "Festival Primavera Cattolica 2022"]
[Site "Cattolica"]
[Date "2022.03.20"]
[Round "9.7"]
[White "Davtyan, Artur"]
[Black "Nikolov, Momchil"]
[Result "1/2-1/2"]
[ECO "E11"]
[WhiteElo "2460"]
[BlackElo "2501"]
[Annotator "RC"]
[PlyCount "68"]
[EventDate "2022.03.16"]
[EventType "swiss"]
[EventCountry "ITA"]
[SourceTitle "playchess.com"]
[Source "ChessBase"]
[SourceQuality "1"]
[TimeControl "30/3600+30:1800+30"]

1. d4 {[%emt 0:00:36]} Nf6 {[%emt 0:00:09]} 2. c4 {[%emt 0:00:05]} e6 {[%emt 0:00:11]} 3. Nf3 {[%emt 0:00:07]} Bb4+ {[%emt 0:00:22]} 4. Bd2 {[%emt 0:00:43]} Bxd2+ {[%emt 0:00:26]} 5. Qxd2 {[%emt 0:00:19]} O-O {[%emt 0:00:46]} 6. Nc3 {[%emt 0:00:10]} d5 {[%emt 0:00:21]} 7. e3 {[%emt 0:00:18]} Qe7 {[%emt 0:00:22]} 8. Rc1 {[%emt 0:01:45]} dxc4 {[%emt 0:01:11]} 9. Bxc4 {[%emt 0:01:12]} c5 {[%emt 0:00:10]} 10. O-O {[%emt 0:00:27]} Nc6 {[%emt 0:01:31]} 11. Qe2 {[%emt 0:02:32]} Rd8 {[%emt 0:03:34]} 12. Rfd1 {[%emt 0:04:26]} Bd7 {[%emt 0:02:08]} 13. a3 {[%emt 0:06:22]} Rac8 {[%emt 0:05:06]} 14. Ba2 {[%emt 0:01:52]} cxd4 {[%emt 0:02:07]} 15. exd4 {[%emt 0:00:06]} Be8 {[%emt 0:00:36]} 16. h3 {[%emt 0:00:31]} Rd6 {[%emt 0:09:06]} 17. Nb5 {[%emt 0:24:01]} Rdd8 {[%emt 0:01:49]} 18. Rc2 {[%emt 0:00:39]} Nd5 {[%emt 0:09:08]} 19. Nc3 {[%emt 0:05:32]} Nxc3 {[%emt 0:05:13]} 20. Rxc3 {[%emt 0:00:04]} Rd6 {[%emt 0:03:02]} 21. Re3 {[%emt 0:02:39]} Qd8 {[%emt 0:01:16]} 22. Re4 {[%emt 0:08:14]} Ne7 {[%emt 0:01:43]} 23. Re1 {[%emt 0:03:05]} Nd5 {[%emt 0:07:26]} 24. h4 {[%emt 0:00:33]} Nf6 {[%emt 0:05:10]} 25. Rf4 {[%emt 0:00:02]} Qc7 {[%emt 0:03:31]} 26. Ng5 {[%emt 0:01:36]} h6 {[%emt 0:03:44]} 27. Nxe6 {[%emt 0:05:00]} fxe6 {[%emt 0:01:42]} 28. Bxe6+ {[%emt 0:00:05]} Rxe6 {[%emt 0:00:37]} 29. Qxe6+ {[%emt 0:00:03]} Bf7 {[%emt 0:00:33]} 30. Qf5 {[%emt 0:00:00]} Rd8 {[%emt 0:00:00]} 31. g4 {[%emt 0:05:53]} Rd5 {[%emt 0:16:12]} 32. Re5 {[%emt 0:02:30]} Bg6 {[%emt 0:01:02]} 33. Qe6+ {[%emt 0:01:12]} Bf7 {[%emt 0:02:48]} 34. Qf5 {[%emt 0:00:08]} Bg6 {[%emt 0:00:18]} 1/2-1/2